[Event "Titled Tuesday Blitz April 25 Early 2023"]
[White "Hartikainen, Jarmo"]
[Black "Degtiarev, Evgeny"]
[WhiteFideId "503134"]
[BlackFideId "4149610"]
[WhiteElo "2148"]
[BlackElo "2284"]
[Result "1-0"]
[Round "05"]
[TimeControl "180+2"]
[Date "2023.04.25"]
[WhiteClock "0:00:10"]
[BlackClock "0:00:11"]

1. e4 {[%clk 0:03:00]}  e5 {[%clk 0:02:59]} 2. Nf3 {[%clk 0:03:00]}  Nc6 {[%clk 0:02:59]} 3. Bc4 {[%clk 0:02:59]}  Bc5 {[%clk 0:02:58]} 4. c3 {[%clk 0:02:59]}  Nf6 {[%clk 0:02:56]} 5. d4 {[%clk 0:02:55]}  exd4 {[%clk 0:02:54]} 6. b4 {[%clk 0:02:55]}  Bb6 {[%clk 0:02:46]} 7. e5 {[%clk 0:02:54]}  d5 {[%clk 0:02:46]} 8. exf6 {[%clk 0:02:54]}  dxc4 {[%clk 0:02:46]} 9. Qe2+ {[%clk 0:02:54]}  Be6 {[%clk 0:02:44]} 10. b5 {[%clk 0:02:54]}  d3 {[%clk 0:02:39]} 11. Qe4 {[%clk 0:02:53]}  Nb4 {[%clk 0:02:35]} 12. O-O {[%clk 0:02:02]}  Nc2 {[%clk 0:02:35]} 13. fxg7 {[%clk 0:01:44]}  Rg8 {[%clk 0:02:35]} 14. Qxh7 {[%clk 0:01:42]}  Kd7 {[%clk 0:02:28]} 15. Ne5+ {[%clk 0:01:14]}  Kc8 {[%clk 0:02:28]} 16. Bg5 {[%clk 0:01:08]}  f6 {[%clk 0:02:21]} 17. Bh4 {[%clk 0:00:45]}  Bc5 {[%clk 0:01:51]} 18. Nd2 {[%clk 0:00:43]}  Nxa1 {[%clk 0:01:50]} 19. Rxa1 {[%clk 0:00:41]}  Be7 {[%clk 0:01:46]} 20. Nexc4 {[%clk 0:00:40]}  b6 {[%clk 0:01:43]} 21. Re1 {[%clk 0:00:39]}  Bd5 {[%clk 0:01:36]} 22. Ne3 {[%clk 0:00:36]}  Bxa2 {[%clk 0:01:17]} 23. Nf5 {[%clk 0:00:30]}  Bc5 {[%clk 0:01:08]} 24. Nh6 {[%clk 0:00:27]}  Kb7 {[%clk 0:01:05]} 25. Nxg8 {[%clk 0:00:25]}  Bxg8 {[%clk 0:00:59]} 26. Qe4+ {[%clk 0:00:24]}  Qd5 {[%clk 0:00:50]} 27. Bxf6 {[%clk 0:00:21]}  a6 {[%clk 0:00:41]} 28. bxa6+ {[%clk 0:00:15]}  Rxa6 {[%clk 0:00:40]} 29. h4 {[%clk 0:00:15]}  Ra2 {[%clk 0:00:37]} 30. Qxd5+ {[%clk 0:00:14]}  Bxd5 {[%clk 0:00:36]} 31. Bg5 {[%clk 0:00:13]}  b5 {[%clk 0:00:28]} 32. h5 {[%clk 0:00:13]}  b4 {[%clk 0:00:28]} 33. h6 {[%clk 0:00:14]}  bxc3 {[%clk 0:00:28]} 34. h7 {[%clk 0:00:13]}  cxd2 {[%clk 0:00:28]} 35. Bxd2 {[%clk 0:00:12]}  Rxd2 {[%clk 0:00:28]} 36. h8=Q {[%clk 0:00:11]}  Bd4 {[%clk 0:00:20]} 37. g8=Q {[%clk 0:00:11]}  Bxg8 {[%clk 0:00:17]} 38. Qxg8 {[%clk 0:00:11]}  Rxf2 {[%clk 0:00:14]} 39. Qd5+ {[%clk 0:00:10]}  c6 {[%clk 0:00:12]} 40. Qxd4 {[%clk 0:00:10]}  d2 {[%clk 0:00:11]} 41. Kxf2 {[%clk 0:00:09]}  dxe1=Q+ {[%clk 0:00:11]} 42. Kxe1 {[%clk 0:00:10]} 1-0


[Site "https://www.chess.com"]

[Event "Titled Tuesday Blitz April 25 Early 2023"]
[White "Szente Varga, Fruzsina"]
[Black "Maluco_do_Natal_00"]
[WhiteFideId "712264"]
[WhiteElo "1994"]
[BlackElo "2015"]
[Result "1-0"]
[Round "05"]
[TimeControl "180+2"]
[Date "2023.04.25"]
[WhiteClock "0:00:50"]
[BlackClock "0:00:01"]

1. e4 {[%clk 0:02:55]}  c5 {[%clk 0:02:29]} 2. Nf3 {[%clk 0:02:54]}  Nc6 {[%clk 0:02:28]} 3. Bb5 {[%clk 0:02:54]}  e6 {[%clk 0:02:27]} 4. O-O {[%clk 0:02:53]}  Nge7 {[%clk 0:02:27]} 5. b3 {[%clk 0:02:53]}  d6 {[%clk 0:02:15]} 6. Bb2 {[%clk 0:02:52]}  e5 {[%clk 0:02:14]} 7. c3 {[%clk 0:02:48]}  Bd7 {[%clk 0:01:54]} 8. d4 {[%clk 0:02:47]}  Ng6 {[%clk 0:01:37]} 9. dxc5 {[%clk 0:02:39]}  dxc5 {[%clk 0:01:37]} 10. c4 {[%clk 0:02:39]}  Qc7 {[%clk 0:01:26]} 11. Nc3 {[%clk 0:02:37]}  Nd4 {[%clk 0:00:59]} 12. Bxd7+ {[%clk 0:02:34]}  Qxd7 {[%clk 0:00:56]} 13. Nd5 {[%clk 0:02:34]}  Bd6 {[%clk 0:00:51]} 14. Nxd4 {[%clk 0:01:50]}  cxd4 {[%clk 0:00:33]} 15. Rc1 {[%clk 0:01:45]}  b6 {[%clk 0:00:32]} 16. Qd2 {[%clk 0:01:45]}  O-O {[%clk 0:00:31]} 17. b4 {[%clk 0:01:45]}  Rac8 {[%clk 0:00:29]} 18. Rc2 {[%clk 0:01:29]}  Rc6 {[%clk 0:00:26]} 19. Rfc1 {[%clk 0:01:29]}  Rfc8 {[%clk 0:00:26]} 20. b5 {[%clk 0:01:27]}  Rc5 {[%clk 0:00:22]} 21. Ba3 {[%clk 0:01:27]}  Rxd5 {[%clk 0:00:22]} 22. cxd5 {[%clk 0:01:25]}  Rxc2 {[%clk 0:00:21]} 23. Qxc2 {[%clk 0:01:16]}  Bxa3 {[%clk 0:00:19]} 24. Qc8+ {[%clk 0:01:09]}  Qxc8 {[%clk 0:00:18]} 25. Rxc8+ {[%clk 0:01:10]}  Nf8 {[%clk 0:00:13]} 26. Kf1 {[%clk 0:01:08]}  f6 {[%clk 0:00:12]} 27. Ke2 {[%clk 0:01:08]}  Kf7 {[%clk 0:00:10]} 28. Rc7+ {[%clk 0:01:07]}  Kg6 {[%clk 0:00:07]} 29. Rxa7 {[%clk 0:01:07]}  Bc5 {[%clk 0:00:07]} 30. Kd3 {[%clk 0:01:07]}  f5 {[%clk 0:00:06]} 31. f3 {[%clk 0:01:07]}  fxe4+ {[%clk 0:00:05]} 32. fxe4 {[%clk 0:01:07]}  Kf6 {[%clk 0:00:05]} 33. a4 {[%clk 0:01:06]}  g5 {[%clk 0:00:03]} 34. Rc7 {[%clk 0:01:05]}  Ng6 {[%clk 0:00:02]} 35. a5 {[%clk 0:01:00]}  Nf4+ {[%clk 0:00:01]} 36. Kc2 {[%clk 0:00:52]}  Nxg2 {[%clk 0:00:01]} 37. a6 {[%clk 0:00:50]}  Ne3+ {[%clk 0:00:01]} 38. Kd3 {[%clk 0:00:50]} 1-0


[Site "https://www.chess.com"]

[Event "Titled Tuesday Blitz April 25 Early 2023"]
[White "mohsengabr2002"]
[Black "Prado, Alexandra"]
[BlackFideId "3301346"]
[WhiteElo "2335"]
[BlackElo "1759"]
[Result "1-0"]
[Round "05"]
[TimeControl "180+2"]
[Date "2023.04.25"]
[WhiteClock "0:00:14"]
[BlackClock "0:00:02"]

1. Nf3 {[%clk 0:03:00]}  Nf6 {[%clk 0:02:58]} 2. g3 {[%clk 0:03:00]}  g6 {[%clk 0:02:58]} 3. Bg2 {[%clk 0:03:00]}  Bg7 {[%clk 0:02:58]} 4. O-O {[%clk 0:03:00]}  O-O {[%clk 0:02:58]} 5. d4 {[%clk 0:02:57]}  d6 {[%clk 0:02:58]} 6. c4 {[%clk 0:02:56]}  Nc6 {[%clk 0:02:57]} 7. d5 {[%clk 0:02:55]}  Na5 {[%clk 0:02:54]} 8. Nfd2 {[%clk 0:02:50]}  c5 {[%clk 0:02:50]} 9. Nc3 {[%clk 0:02:47]}  a6 {[%clk 0:02:43]} 10. Rb1 {[%clk 0:02:46]}  Rb8 {[%clk 0:02:11]} 11. a3 {[%clk 0:02:42]}  b5 {[%clk 0:02:04]} 12. cxb5 {[%clk 0:02:41]}  axb5 {[%clk 0:01:59]} 13. b4 {[%clk 0:02:41]}  cxb4 {[%clk 0:00:56]} 14. Rxb4 {[%clk 0:02:38]}  Nd7 {[%clk 0:00:46]} 15. Nxb5 {[%clk 0:02:35]}  Ba6 {[%clk 0:00:31]} 16. a4 {[%clk 0:01:58]}  Nc5 {[%clk 0:00:20]} 17. Bb2 {[%clk 0:01:54]}  Bxb2 {[%clk 0:00:17]} 18. Rxb2 {[%clk 0:01:53]}  Qd7 {[%clk 0:00:17]} 19. Qc2 {[%clk 0:01:36]}  Bxb5 {[%clk 0:00:14]} 20. axb5 {[%clk 0:01:36]}  Rxb5 {[%clk 0:00:15]} 21. Rxb5 {[%clk 0:01:34]}  Qxb5 {[%clk 0:00:16]} 22. Ra1 {[%clk 0:01:30]}  Nab7 {[%clk 0:00:14]} 23. Bf1 {[%clk 0:01:27]}  Qd7 {[%clk 0:00:13]} 24. Ra7 {[%clk 0:01:23]}  Qg4 {[%clk 0:00:12]} 25. Qc4 {[%clk 0:01:13]}  Qxc4 {[%clk 0:00:11]} 26. Nxc4 {[%clk 0:01:13]}  Rb8 {[%clk 0:00:10]} 27. e3 {[%clk 0:01:08]}  Kf8 {[%clk 0:00:10]} 28. Nb6 {[%clk 0:01:03]}  Nd8 {[%clk 0:00:08]} 29. Nd7+ {[%clk 0:01:01]}  Nxd7 {[%clk 0:00:07]} 30. Rxd7 {[%clk 0:01:01]}  Ke8 {[%clk 0:00:07]} 31. Ra7 {[%clk 0:01:01]}  Kf8 {[%clk 0:00:04]} 32. Kg2 {[%clk 0:00:55]}  Nb7 {[%clk 0:00:03]} 33. h4 {[%clk 0:00:51]}  Nc5 {[%clk 0:00:04]} 34. Be2 {[%clk 0:00:49]}  h5 {[%clk 0:00:04]} 35. g4 {[%clk 0:00:49]}  Rb2 {[%clk 0:00:05]} 36. Bf3 {[%clk 0:00:48]}  hxg4 {[%clk 0:00:05]} 37. Bxg4 {[%clk 0:00:48]}  Nd3 {[%clk 0:00:05]} 38. Kg3 {[%clk 0:00:41]}  Nxf2 {[%clk 0:00:04]} 39. Bf3 {[%clk 0:00:19]}  Rd2 {[%clk 0:00:03]} 40. h5 {[%clk 0:00:18]}  gxh5 {[%clk 0:00:01]} 41. Bxh5 {[%clk 0:00:18]}  Nd3 {[%clk 0:00:02]} 42. Ra8+ {[%clk 0:00:15]}  Kg7 {[%clk 0:00:02]} 43. Ra7 {[%clk 0:00:15]}  Kf6 {[%clk 0:00:02]} 44. Bf3 {[%clk 0:00:14]}  Ne5 {[%clk 0:00:02]} 45. Be4 {[%clk 0:00:14]} 1-0


[Site "https://www.chess.com"]

[Event "Titled Tuesday Blitz April 25 Early 2023"]
[White "Ordekalog"]
[Black "Mammadov, Ziya"]
[BlackFideId "13418890"]
[WhiteElo "2483"]
[BlackElo "1583"]
[Result "1-0"]
[Round "05"]
[TimeControl "180+2"]
[Date "2023.04.25"]
[WhiteClock "0:01:11"]
[BlackClock "0:00:13"]

1. e4 {[%clk 0:03:00]}  e6 {[%clk 0:03:00]} 2. Bb5 {[%clk 0:03:00]}  c6 {[%clk 0:03:00]} 3. Ba4 {[%clk 0:02:59]}  d5 {[%clk 0:02:58]} 4. exd5 {[%clk 0:02:53]}  exd5 {[%clk 0:02:59]} 5. Nf3 {[%clk 0:02:52]}  Nf6 {[%clk 0:03:00]} 6. O-O {[%clk 0:02:52]}  Bd6 {[%clk 0:03:00]} 7. Re1+ {[%clk 0:02:49]}  Be6 {[%clk 0:03:00]} 8. d4 {[%clk 0:02:45]}  O-O {[%clk 0:02:58]} 9. h3 {[%clk 0:02:44]}  a5 {[%clk 0:02:54]} 10. c3 {[%clk 0:02:43]}  Nbd7 {[%clk 0:02:51]} 11. Nbd2 {[%clk 0:02:37]}  Nb6 {[%clk 0:02:49]} 12. Bc2 {[%clk 0:02:36]}  Qc7 {[%clk 0:02:47]} 13. Nf1 {[%clk 0:02:29]}  Rfe8 {[%clk 0:02:46]} 14. Bg5 {[%clk 0:02:27]}  Be7 {[%clk 0:02:45]} 15. Ng3 {[%clk 0:02:24]}  h6 {[%clk 0:02:42]} 16. Bxf6 {[%clk 0:02:10]}  Bxf6 {[%clk 0:02:42]} 17. Nh5 {[%clk 0:02:09]}  Qd6 {[%clk 0:02:40]} 18. Qd3 {[%clk 0:02:05]}  Kf8 {[%clk 0:01:37]} 19. Qh7 {[%clk 0:02:04]}  Ke7 {[%clk 0:01:36]} 20. Nxg7 {[%clk 0:02:02]}  Rh8 {[%clk 0:01:32]} 21. Qxh8 {[%clk 0:01:51]}  Rxh8 {[%clk 0:01:30]} 22. Nf5+ {[%clk 0:01:51]}  Kd7 {[%clk 0:01:30]} 23. Nxd6 {[%clk 0:01:52]}  Kxd6 {[%clk 0:01:31]} 24. Ne5 {[%clk 0:01:53]}  Rg8 {[%clk 0:01:25]} 25. b3 {[%clk 0:01:43]}  Bxh3 {[%clk 0:01:17]} 26. Nxf7+ {[%clk 0:01:42]}  Kc7 {[%clk 0:01:17]} 27. g3 {[%clk 0:01:38]}  Bd7 {[%clk 0:01:16]} 28. Nxh6 {[%clk 0:01:34]}  Rh8 {[%clk 0:01:12]} 29. Nf5 {[%clk 0:01:34]}  a4 {[%clk 0:01:05]} 30. Kg2 {[%clk 0:01:32]}  axb3 {[%clk 0:00:58]} 31. axb3 {[%clk 0:01:32]}  Nc8 {[%clk 0:00:55]} 32. Rh1 {[%clk 0:01:28]}  Rf8 {[%clk 0:00:53]} 33. Rh7 {[%clk 0:01:27]}  Kd8 {[%clk 0:00:50]} 34. Ra8 {[%clk 0:01:25]}  Bg5 {[%clk 0:00:39]} 35. Nd6 {[%clk 0:01:21]}  Kc7 {[%clk 0:00:26]} 36. Nxc8 {[%clk 0:01:20]}  Rxc8 {[%clk 0:00:27]} 37. Rxd7+ {[%clk 0:01:19]}  Kxd7 {[%clk 0:00:27]} 38. Bf5+ {[%clk 0:01:19]}  Ke7 {[%clk 0:00:27]} 39. Rxc8 {[%clk 0:01:18]}  Kf6 {[%clk 0:00:28]} 40. Bg4 {[%clk 0:01:17]}  Ke7 {[%clk 0:00:28]} 41. Rc7+ {[%clk 0:01:17]}  Kd6 {[%clk 0:00:27]} 42. Rxb7 {[%clk 0:01:18]}  c5 {[%clk 0:00:27]} 43. Rb6+ {[%clk 0:01:17]}  Kc7 {[%clk 0:00:27]} 44. dxc5 {[%clk 0:01:18]}  d4 {[%clk 0:00:27]} 45. cxd4 {[%clk 0:01:18]}  Bd2 {[%clk 0:00:25]} 46. f4 {[%clk 0:01:17]}  Ba5 {[%clk 0:00:25]} 47. Rd6 {[%clk 0:01:16]}  Kb8 {[%clk 0:00:22]} 48. Kf3 {[%clk 0:01:15]}  Bc7 {[%clk 0:00:22]} 49. Rg6 {[%clk 0:01:14]}  Ba5 {[%clk 0:00:21]} 50. Ke4 {[%clk 0:01:14]}  Bc3 {[%clk 0:00:20]} 51. Kd5 {[%clk 0:01:13]}  Bb4 {[%clk 0:00:19]} 52. Kc6 {[%clk 0:01:13]}  Bxc5 {[%clk 0:00:18]} 53. dxc5 {[%clk 0:01:13]}  Ka7 {[%clk 0:00:16]} 54. Rg8 {[%clk 0:01:10]}  Ka6 {[%clk 0:00:13]} 55. Ra8# {[%clk 0:01:11]} 1-0


[Site "https://www.chess.com"]

[Event "Titled Tuesday Blitz April 25 Early 2023"]
[White "Prieto Aranguren, Alain"]
[Black "Zavortink, Matt"]
[WhiteFideId "2268906"]
[BlackFideId "2034263"]
[WhiteElo "2209"]
[BlackElo "2471"]
[Result "1-0"]
[Round "05"]
[TimeControl "180+2"]
[Date "2023.04.25"]
[WhiteClock "0:00:13"]
[BlackClock "0:00:02"]

1. e4 {[%clk 0:02:56]}  e6 {[%clk 0:02:59]} 2. d4 {[%clk 0:02:56]}  d5 {[%clk 0:03:00]} 3. exd5 {[%clk 0:02:56]}  exd5 {[%clk 0:03:01]} 4. Bd3 {[%clk 0:02:56]}  Nf6 {[%clk 0:02:59]} 5. Nf3 {[%clk 0:02:57]}  c5 {[%clk 0:02:59]} 6. dxc5 {[%clk 0:02:55]}  Bxc5 {[%clk 0:03:00]} 7. O-O {[%clk 0:02:55]}  O-O {[%clk 0:03:00]} 8. Nbd2 {[%clk 0:02:55]}  h6 {[%clk 0:02:55]} 9. Nb3 {[%clk 0:02:55]}  Bb6 {[%clk 0:02:55]} 10. Bf4 {[%clk 0:02:53]}  Nc6 {[%clk 0:02:55]} 11. c3 {[%clk 0:02:49]}  Bg4 {[%clk 0:02:54]} 12. Be2 {[%clk 0:02:47]}  Re8 {[%clk 0:02:48]} 13. Nfd4 {[%clk 0:02:46]}  Bxe2 {[%clk 0:02:38]} 14. Nxe2 {[%clk 0:02:46]}  Ne4 {[%clk 0:02:38]} 15. Ned4 {[%clk 0:02:44]}  Qf6 {[%clk 0:02:35]} 16. Be3 {[%clk 0:02:39]}  Rad8 {[%clk 0:02:29]} 17. Qf3 {[%clk 0:02:30]}  Nxd4 {[%clk 0:02:06]} 18. Nxd4 {[%clk 0:02:26]}  Bxd4 {[%clk 0:02:04]} 19. cxd4 {[%clk 0:02:19]}  Qxf3 {[%clk 0:02:02]} 20. gxf3 {[%clk 0:02:19]}  Nd6 {[%clk 0:02:02]} 21. b3 {[%clk 0:02:17]}  Rc8 {[%clk 0:02:01]} 22. Rfc1 {[%clk 0:02:17]}  Nf5 {[%clk 0:02:01]} 23. Kf1 {[%clk 0:01:47]}  Kf8 {[%clk 0:01:56]} 24. Ke1 {[%clk 0:01:39]}  Ke7 {[%clk 0:01:30]} 25. Kd2 {[%clk 0:01:35]}  Kd7 {[%clk 0:01:30]} 26. Rxc8 {[%clk 0:01:32]}  Rxc8 {[%clk 0:01:30]} 27. Rg1 {[%clk 0:01:28]}  g6 {[%clk 0:01:28]} 28. Kd3 {[%clk 0:01:22]}  h5 {[%clk 0:01:26]} 29. Rb1 {[%clk 0:01:17]}  b5 {[%clk 0:01:25]} 30. Rg1 {[%clk 0:01:08]}  Rc6 {[%clk 0:01:24]} 31. Bd2 {[%clk 0:01:01]}  Ra6 {[%clk 0:01:21]} 32. Ra1 {[%clk 0:00:57]}  Nh4 {[%clk 0:01:20]} 33. Ke2 {[%clk 0:00:56]}  Nf5 {[%clk 0:01:13]} 34. Kd3 {[%clk 0:00:56]}  Re6 {[%clk 0:01:09]} 35. a4 {[%clk 0:00:51]}  bxa4 {[%clk 0:01:00]} 36. Rxa4 {[%clk 0:00:50]}  a6 {[%clk 0:00:59]} 37. Ra5 {[%clk 0:00:48]}  Rd6 {[%clk 0:00:47]} 38. Bf4 {[%clk 0:00:46]}  Rb6 {[%clk 0:00:45]} 39. Rxd5+ {[%clk 0:00:45]}  Ke6 {[%clk 0:00:41]} 40. Re5+ {[%clk 0:00:44]}  Kf6 {[%clk 0:00:38]} 41. Kc3 {[%clk 0:00:41]}  g5 {[%clk 0:00:20]} 42. Be3 {[%clk 0:00:37]}  Rc6+ {[%clk 0:00:11]} 43. Rc5 {[%clk 0:00:36]}  Rb6 {[%clk 0:00:09]} 44. d5 {[%clk 0:00:34]}  Ne7 {[%clk 0:00:07]} 45. Bxg5+ {[%clk 0:00:27]}  Kxg5 {[%clk 0:00:05]} 46. d6+ {[%clk 0:00:28]}  Kf6 {[%clk 0:00:05]} 47. dxe7 {[%clk 0:00:25]}  Kxe7 {[%clk 0:00:06]} 48. Rxh5 {[%clk 0:00:25]}  Rf6 {[%clk 0:00:07]} 49. Rh3 {[%clk 0:00:22]}  Rf4 {[%clk 0:00:07]} 50. Kd3 {[%clk 0:00:20]}  f6 {[%clk 0:00:07]} 51. Ke3 {[%clk 0:00:17]}  Rb4 {[%clk 0:00:06]} 52. Rh7+ {[%clk 0:00:16]}  Ke6 {[%clk 0:00:07]} 53. Ra7 {[%clk 0:00:16]}  Rxb3+ {[%clk 0:00:07]} 54. Kf4 {[%clk 0:00:17]}  Ra3 {[%clk 0:00:06]} 55. h4 {[%clk 0:00:15]}  Ra4+ {[%clk 0:00:07]} 56. Kg3 {[%clk 0:00:15]}  Kf5 {[%clk 0:00:06]} 57. Rg7 {[%clk 0:00:14]}  Ra1 {[%clk 0:00:04]} 58. Kg2 {[%clk 0:00:13]}  Rb1 {[%clk 0:00:02]} 59. h5 {[%clk 0:00:13]}  Rb8 {[%clk 0:00:02]} 60. h6 {[%clk 0:00:13]}  Rh8 {[%clk 0:00:02]} 61. h7 {[%clk 0:00:13]} 1-0


[Site "https://www.chess.com"]

[Event "Titled Tuesday Blitz April 25 Early 2023"]
[White "Ramirez, Maria Eugenia"]
[Black "Fuzesabonyilaci"]
[WhiteFideId "3301680"]
[WhiteElo "1842"]
[BlackElo "2325"]
[Result "1-0"]
[Round "05"]
[TimeControl "180+2"]
[Date "2023.04.25"]
[WhiteClock "0:00:05"]
[BlackClock "0:00:01"]

1. e4 {[%clk 0:03:00]}  e5 {[%clk 0:02:59]} 2. Nf3 {[%clk 0:03:00]}  Nc6 {[%clk 0:03:00]} 3. Nc3 {[%clk 0:03:01]}  Nf6 {[%clk 0:02:59]} 4. Bb5 {[%clk 0:03:01]}  Nd4 {[%clk 0:02:58]} 5. Bc4 {[%clk 0:02:56]}  d6 {[%clk 0:02:43]} 6. h3 {[%clk 0:02:53]}  Be7 {[%clk 0:02:42]} 7. O-O {[%clk 0:02:51]}  Ne6 {[%clk 0:02:38]} 8. d4 {[%clk 0:02:48]}  exd4 {[%clk 0:02:37]} 9. Nxd4 {[%clk 0:02:48]}  Nxd4 {[%clk 0:02:37]} 10. Qxd4 {[%clk 0:02:47]}  O-O {[%clk 0:02:37]} 11. Bg5 {[%clk 0:02:39]}  Nd7 {[%clk 0:02:36]} 12. Bxe7 {[%clk 0:02:33]}  Qxe7 {[%clk 0:02:37]} 13. Rae1 {[%clk 0:02:30]}  a6 {[%clk 0:02:34]} 14. Nd5 {[%clk 0:02:30]}  Qd8 {[%clk 0:02:33]} 15. f4 {[%clk 0:02:28]}  b5 {[%clk 0:02:33]} 16. Bd3 {[%clk 0:02:26]}  c6 {[%clk 0:02:30]} 17. Nc3 {[%clk 0:02:21]}  Qb6 {[%clk 0:02:30]} 18. Qxb6 {[%clk 0:02:19]}  Nxb6 {[%clk 0:02:31]} 19. e5 {[%clk 0:02:14]}  d5 {[%clk 0:02:22]} 20. f5 {[%clk 0:02:11]}  c5 {[%clk 0:02:19]} 21. e6 {[%clk 0:02:09]}  fxe6 {[%clk 0:02:18]} 22. fxe6 {[%clk 0:02:09]}  Bb7 {[%clk 0:02:06]} 23. Bf5 {[%clk 0:01:29]}  Rae8 {[%clk 0:01:49]} 24. e7 {[%clk 0:01:08]}  Rf6 {[%clk 0:01:47]} 25. Be6+ {[%clk 0:01:08]}  Rxe6 {[%clk 0:01:14]} 26. Rxe6 {[%clk 0:01:07]}  Nc8 {[%clk 0:01:15]} 27. Rfe1 {[%clk 0:01:01]}  Kf7 {[%clk 0:01:11]} 28. R6e5 {[%clk 0:00:49]}  Rxe7 {[%clk 0:01:05]} 29. Rf1+ {[%clk 0:00:46]}  Ke8 {[%clk 0:01:02]} 30. Ref5 {[%clk 0:00:44]}  Nd6 {[%clk 0:00:52]} 31. Rh5 {[%clk 0:00:43]}  g6 {[%clk 0:00:42]} 32. Rh4 {[%clk 0:00:42]}  d4 {[%clk 0:00:39]} 33. Nd1 {[%clk 0:00:36]}  Nf5 {[%clk 0:00:36]} 34. Rhf4 {[%clk 0:00:35]}  Re2 {[%clk 0:00:32]} 35. R4f2 {[%clk 0:00:32]}  Re7 {[%clk 0:00:30]} 36. g4 {[%clk 0:00:30]}  Nd6 {[%clk 0:00:18]} 37. Rf8+ {[%clk 0:00:31]}  Kd7 {[%clk 0:00:18]} 38. Rh8 {[%clk 0:00:21]}  Kc7 {[%clk 0:00:17]} 39. c3 {[%clk 0:00:17]}  d3 {[%clk 0:00:17]} 40. Rhf8 {[%clk 0:00:15]}  c4 {[%clk 0:00:16]} 41. R8f6 {[%clk 0:00:08]}  Ne4 {[%clk 0:00:15]} 42. Rf7 {[%clk 0:00:07]}  Kd6 {[%clk 0:00:11]} 43. Rxe7 {[%clk 0:00:07]}  Kxe7 {[%clk 0:00:12]} 44. Re1 {[%clk 0:00:08]}  Kd6 {[%clk 0:00:12]} 45. Ne3 {[%clk 0:00:07]}  Ke5 {[%clk 0:00:10]} 46. Kf1 {[%clk 0:00:06]}  Kf4 {[%clk 0:00:09]} 47. Nd1 {[%clk 0:00:05]}  Kf3 {[%clk 0:00:04]} 48. Re3+ {[%clk 0:00:05]}  Kf4 {[%clk 0:00:04]} 49. Ke1 {[%clk 0:00:05]}  Bc6 {[%clk 0:00:03]} 50. b3 {[%clk 0:00:04]}  h5 {[%clk 0:00:02]} 51. bxc4 {[%clk 0:00:04]}  bxc4 {[%clk 0:00:01]} 52. gxh5 {[%clk 0:00:04]}  gxh5 {[%clk 0:00:01]} 53. h4 {[%clk 0:00:05]} 1-0


[Site "https://www.chess.com"]

[Event "Titled Tuesday Blitz April 25 Early 2023"]
[White "Kuchava, Ana"]
[Black "Pavlidis, Anastasios"]
[WhiteFideId "13605348"]
[BlackFideId "4208404"]
[WhiteElo "2001"]
[BlackElo "2210"]
[Result "1-0"]
[Round "05"]
[TimeControl "180+2"]
[Date "2023.04.25"]
[WhiteClock "0:00:13"]
[BlackClock "0:00:46"]

1. d4 {[%clk 0:03:00]}  d5 {[%clk 0:02:55]} 2. Nf3 {[%clk 0:02:59]}  e6 {[%clk 0:02:53]} 3. c4 {[%clk 0:02:58]}  h6 {[%clk 0:02:52]} 4. Nc3 {[%clk 0:02:56]}  Nf6 {[%clk 0:02:50]} 5. Bf4 {[%clk 0:02:53]}  Bd6 {[%clk 0:02:50]} 6. Bxd6 {[%clk 0:02:49]}  Qxd6 {[%clk 0:02:49]} 7. e3 {[%clk 0:02:50]}  O-O {[%clk 0:02:47]} 8. Bd3 {[%clk 0:02:49]}  c5 {[%clk 0:02:44]} 9. cxd5 {[%clk 0:02:46]}  exd5 {[%clk 0:02:39]} 10. h3 {[%clk 0:02:45]}  c4 {[%clk 0:02:38]} 11. Bc2 {[%clk 0:02:42]}  a6 {[%clk 0:02:36]} 12. O-O {[%clk 0:02:34]}  b5 {[%clk 0:02:30]} 13. a3 {[%clk 0:02:34]}  Re8 {[%clk 0:02:30]} 14. Ne5 {[%clk 0:02:34]}  Bb7 {[%clk 0:02:29]} 15. f4 {[%clk 0:02:32]}  Nbd7 {[%clk 0:02:25]} 16. Rf3 {[%clk 0:02:06]}  Ne4 {[%clk 0:02:17]} 17. Bxe4 {[%clk 0:01:47]}  dxe4 {[%clk 0:02:15]} 18. Rg3 {[%clk 0:01:47]}  Nf6 {[%clk 0:02:13]} 19. Ng4 {[%clk 0:01:36]}  Nxg4 {[%clk 0:02:13]} 20. Qxg4 {[%clk 0:01:37]}  Qf6 {[%clk 0:02:13]} 21. Rf1 {[%clk 0:01:30]}  Rad8 {[%clk 0:01:57]} 22. f5 {[%clk 0:01:18]}  Re7 {[%clk 0:01:47]} 23. Ne2 {[%clk 0:00:56]}  Bc8 {[%clk 0:01:42]} 24. Rf4 {[%clk 0:00:47]}  Rde8 {[%clk 0:01:41]} 25. Nc3 {[%clk 0:00:43]}  Bb7 {[%clk 0:01:39]} 26. d5 {[%clk 0:00:40]}  a5 {[%clk 0:01:35]} 27. Nxe4 {[%clk 0:00:35]}  Rxe4 {[%clk 0:01:33]} 28. Rxe4 {[%clk 0:00:34]}  Rd8 {[%clk 0:01:34]} 29. Rd4 {[%clk 0:00:31]}  Rxd5 {[%clk 0:01:34]} 30. Qf4 {[%clk 0:00:25]}  Kh7 {[%clk 0:01:21]} 31. Kh2 {[%clk 0:00:21]}  Rxf5 {[%clk 0:01:18]} 32. Qc7 {[%clk 0:00:19]}  Qc6 {[%clk 0:01:13]} 33. Qxc6 {[%clk 0:00:18]}  Bxc6 {[%clk 0:01:13]} 34. Rd6 {[%clk 0:00:16]}  Be4 {[%clk 0:01:12]} 35. Rb6 {[%clk 0:00:16]}  Rf2 {[%clk 0:01:10]} 36. Rxb5 {[%clk 0:00:16]}  Bd3 {[%clk 0:01:08]} 37. Rb6 {[%clk 0:00:15]}  a4 {[%clk 0:01:07]} 38. Rb7 {[%clk 0:00:15]}  h5 {[%clk 0:01:06]} 39. Rf3 {[%clk 0:00:15]}  Rxf3 {[%clk 0:00:47]} 40. gxf3 {[%clk 0:00:16]}  Bc2 {[%clk 0:00:47]} 41. Rxf7 {[%clk 0:00:15]}  Bb3 {[%clk 0:00:48]} 42. Rc7 {[%clk 0:00:15]}  Kg6 {[%clk 0:00:48]} 43. Kg3 {[%clk 0:00:15]}  Kg5 {[%clk 0:00:49]} 44. Rxg7+ {[%clk 0:00:15]}  Kh6 {[%clk 0:00:49]} 45. Rc7 {[%clk 0:00:14]}  Kg5 {[%clk 0:00:49]} 46. h4+ {[%clk 0:00:14]}  Kh6 {[%clk 0:00:49]} 47. Kf4 {[%clk 0:00:14]}  Kg6 {[%clk 0:00:45]} 48. e4 {[%clk 0:00:14]}  Kh6 {[%clk 0:00:45]} 49. e5 {[%clk 0:00:15]}  Kg6 {[%clk 0:00:46]} 50. Rc6+ {[%clk 0:00:13]} 1-0


[Site "https://www.chess.com"]